[Event "AUT Bundesliga 2022-23"]
[Site "Jenbach"]
[Date "2022.11.03"]
[Round "1.21"]
[White "Krassowizkij, Jaroslaw"]
[Black "Donchenko, Alexander"]
[Result "1-0"]
[ECO "A06"]
[WhiteElo "2439"]
[BlackElo "2646"]
[Annotator "ChessBase"]
[PlyCount "101"]
[EventDate "2022.11.03"]
[EventType "team-tourn"]
[EventCountry "AUT"]
[SourceTitle "playchess.com"]
[Source "ChessBase"]
[SourceQuality "1"]
[TimeControl "40/5400+30:1800+30"]

1. Nf3 {[%emt 0:00:02]} d5 {[%emt 0:01:02]} 2. g3 {[%emt 0:00:44]} Nc6 {[%emt 0:00:37]} 3. d4 {[%emt 0:00:19]} Bf5 {[%emt 0:00:09]} 4. Bg2 {[%emt 0:00:29]} Nb4 {[%emt 0:00:19]} 5. Na3 {[%emt 0:00:22]} e6 {[%emt 0:00:14]} 6. O-O {[%emt 0:00:16]} Be7 {[%emt 0:00:29]} 7. c3 {[%emt 0:07:05]} Nc6 {[%emt 0:00:14]} 8. b3 {[%emt 0:00:45]} h6 {[%emt 0:05:11]} 9. c4 {[%emt 0:02:22]} Nf6 {[%emt 0:01:27]} 10. Nb5 {[%emt 0:01:26]} O-O {[%emt 0:05:01]} 11. Bf4 {[%emt 0:05:38]} a6 {[%emt 0:04:27]} 12. Nc3 {[%emt 0:01:07]} Ne4 {[%emt 0:16:20]} 13. Nxe4 {[%emt 0:10:10]} dxe4 {[%emt 0:01:23]} 14. Ne5 {[%emt 0:00:09]} Nxd4 {[%emt 0:09:56]} 15. e3 {[%emt 0:00:32]} Nc6 {[%emt 0:12:41]} 16. Nxc6 {[%emt 0:00:56]} bxc6 {[%emt 0:00:02]} 17. Qxd8 {[%emt 0:28:32]} Bxd8 {[%emt 0:00:07]} 18. g4 {[%emt 0:00:34]} Bxg4 {[%emt 0:09:51]} 19. Bxe4 {[%emt 0:00:08]} Bf6 {[%emt 0:00:08]} 20. Bxc6 {[%emt 0:09:57]} Rad8 {[%emt 0:01:52]} 21. Rac1 {[%emt 0:02:33]} e5 {[%emt 0:03:21]} 22. Bg3 {[%emt 0:00:06]} Be2 {[%emt 0:02:13]} 23. Rfe1 {[%emt 0:00:27]} Rd2 {[%emt 0:00:11]} 24. a3 {[%emt 0:07:38]} g5 {[%emt 0:01:11]} 25. h3 {[%emt 0:04:23]} Bg7 {[%emt 0:04:53]} 26. e4 {[%emt 0:01:20]} h5 {[%emt 0:02:57]} 27. b4 {[%emt 0:00:50]} h4 {[%emt 0:01:07]} 28. Bh2 {[%emt 0:00:03]} Rfd8 {[%emt 0:03:44]} 29. b5 {[%emt 0:01:23]} axb5 {[%emt 0:05:42]} 30. cxb5 {[%emt 0:00:02]} Kh8 {[%emt 0:01:31]} 31. a4 {[%emt 0:03:38]} g4 {[%emt 0:02:48]} 32. hxg4 {[%emt 0:00:58]} Bf6 {[%emt 0:00:56]} 33. a5 {[%emt 0:04:27]} Bxg4 {[%emt 0:00:48]} 34. Re3 {[%emt 0:01:28]} Kh7 {[%emt 0:01:57]} 35. a6 {[%emt 0:03:24]} Ra2 {[%emt 0:01:25]} 36. Bd5 {[%emt 0:00:15]} Ra5 {[%emt 0:00:13]} 37. Rxc7 {[%emt 0:00:28]} Bg5 {[%emt 0:00:48]} 38. f4 {[%emt 0:03:00]} exf4 {[%emt 0:00:20]} 39. Bxf4 {[%emt 0:00:06]} Bxf4 {[%emt 0:01:46]} 40. Rxf7+ {[%emt 0:00:00]} Kg6 {[%emt 0:00:00]} 41. Rxf4 {[%emt 0:00:34]} Kg5 {[%emt 0:00:16]} 42. Rf2 {[%emt 0:13:34]} Bd7 {[%emt 0:01:32]} 43. Bc4 {[%emt 0:01:06]} Rc8 {[%emt 0:01:22]} 44. Bf1 {[%emt 0:02:33]} Rc1 {[%emt 0:01:55]} 45. Kh2 {[%emt 0:04:41]} Rb1 {[%emt 0:00:39]} 46. e5 {[%emt 0:01:03]} Be6 {[%emt 0:05:13]} 47. Ref3 {[%emt 0:03:56]} Raa1 {[%emt 0:03:06]} 48. Rf6 {[%emt 0:01:32]} Bg4 {[%emt 0:01:45]} 49. b6 {[%emt 0:00:32]} h3 {[%emt 0:00:39]} 50. b7 {[%emt 0:00:53]} Kh4 {[%emt 0:00:24]} 51. Rf8 {[%emt 0:00:46]} 1-0

[Event "AUT Bundesliga 2022-23"]
[Site "Jenbach"]
[Date "2022.11.03"]
[Round "1.22"]
[White "Wagner, Dennis"]
[Black "Deuer, Marius"]
[Result "1-0"]
[ECO "E00"]
[WhiteElo "2570"]
[BlackElo "2326"]
[Annotator "ChessBase"]
[PlyCount "73"]
[EventDate "2022.11.03"]
[EventType "team-tourn"]
[EventCountry "AUT"]
[SourceTitle "playchess.com"]
[Source "ChessBase"]
[SourceQuality "1"]
[TimeControl "40/5400+30:1800+30"]

1. d4 {[%emt 0:00:05]} Nf6 {[%emt 0:00:07]} 2. c4 {[%emt 0:00:06]} e6 {[%emt 0:00:06]} 3. Bf4 {[%emt 0:00:05]} b6 {[%emt 0:00:42]} 4. a3 {[%emt 0:00:30]} Bb7 {[%emt 0:02:00]} 5. Nc3 {[%emt 0:00:15]} d5 {[%emt 0:02:03]} 6. cxd5 {[%emt 0:00:08]} Nxd5 {[%emt 0:01:31]} 7. Nxd5 {[%emt 0:00:08]} exd5 {[%emt 0:05:49]} 8. e3 {[%emt 0:04:50]} Bd6 {[%emt 0:02:01]} 9. Nh3 {[%emt 0:03:34]} O-O {[%emt 0:03:42]} 10. Be2 {[%emt 0:02:21]} Bxf4 {[%emt 0:09:55]} 11. Nxf4 {[%emt 0:00:06]} Nd7 {[%emt 0:00:07]} 12. Rc1 {[%emt 0:15:28]} Nf6 {[%emt 0:09:46]} 13. O-O {[%emt 0:00:32]} Qe7 {[%emt 0:03:54]} 14. Bf3 {[%emt 0:22:34]} c5 {[%emt 0:18:09]} 15. dxc5 {[%emt 0:00:13]} bxc5 {[%emt 0:02:36]} 16. Re1 {[%emt 0:00:45]} Rfd8 {[%emt 0:00:50]} 17. Qa4 {[%emt 0:05:16]} a6 {[%emt 0:04:51]} 18. Nd3 {[%emt 0:06:37]} Rac8 {[%emt 0:02:32]} 19. Qa5 {[%emt 0:05:09]} c4 {[%emt 0:01:46]} 20. Nf4 {[%emt 0:00:48]} g5 {[%emt 0:09:03]} 21. Nh5 {[%emt 0:00:34]} Nxh5 {[%emt 0:00:31]} 22. Bxh5 {[%emt 0:00:01]} f5 {[%emt 0:01:24]} 23. h3 {[%emt 0:09:22]} Qf6 {[%emt 0:03:03]} 24. Red1 {[%emt 0:06:37]} Rd6 {[%emt 0:05:20]} 25. Rd4 {[%emt 0:04:20]} Rcd8 {[%emt 0:01:10]} 26. Rcd1 {[%emt 0:00:26]} R8d7 {[%emt 0:01:04]} 27. Be2 {[%emt 0:07:11]} Kf8 {[%emt 0:07:34]} 28. Bxc4 {[%emt 0:02:15]} Qe6 {[%emt 0:00:53]} 29. Ba2 {[%emt 0:00:49]} h5 {[%emt 0:01:09]} 30. Qd2 {[%emt 0:01:22]} Kg7 {[%emt 0:01:17]} 31. h4 {[%emt 0:00:50]} gxh4 {[%emt 0:00:29]} 32. Rxh4 {[%emt 0:00:06]} Qg6 {[%emt 0:00:30]} 33. Qd4+ {[%emt 0:00:21]} Kh7 {[%emt 0:00:25]} 34. Bb1 {[%emt 0:01:29]} Rc6 {[%emt 0:00:39]} 35. g4 {[%emt 0:01:12]} Rg7 {[%emt 0:00:30]} 36. Bxf5 {[%emt 0:00:48]} Qxf5 {[%emt 0:00:07]} 37. Qxg7+ {[%emt 0:00:03]} 1-0

[Event "AUT Bundesliga 2022-23"]
[Site "Jenbach"]
[Date "2022.11.03"]
[Round "1.23"]
[White "Neyman, Igor"]
[Black "Acs, Peter"]
[Result "1/2-1/2"]
[ECO "D27"]
[WhiteElo "2354"]
[BlackElo "2572"]
[Annotator "ChessBase"]
[PlyCount "108"]
[EventDate "2022.11.03"]
[EventType "team-tourn"]
[EventCountry "AUT"]
[SourceTitle "playchess.com"]
[Source "ChessBase"]
[SourceQuality "1"]
[TimeControl "40/5400+30:1800+30"]

1. d4 {[%emt 0:00:06]} Nf6 {[%emt 0:00:15]} 2. c4 {[%emt 0:00:30]} c6 {[%emt 0:00:57]} 3. Nf3 {[%emt 0:01:08]} d5 {[%emt 0:00:09]} 4. e3 {[%emt 0:00:55]} e6 {[%emt 0:00:36]} 5. Bd3 {[%emt 0:01:37]} dxc4 {[%emt 0:09:01]} 6. Bxc4 {[%emt 0:01:31]} c5 {[%emt 0:00:10]} 7. O-O {[%emt 0:04:45]} a6 {[%emt 0:01:22]} 8. dxc5 {[%emt 0:04:07]} Qxd1 {[%emt 0:02:25]} 9. Rxd1 {[%emt 0:00:09]} Bxc5 {[%emt 0:00:20]} 10. a3 {[%emt 0:06:04]} Be7 {[%emt 0:12:32]} 11. Be2 {[%emt 0:08:34]} Nbd7 {[%emt 0:02:13]} 12. Nc3 {[%emt 0:05:37]} b6 {[%emt 0:05:39]} 13. b4 {[%emt 0:02:22]} Bb7 {[%emt 0:00:48]} 14. Bb2 {[%emt 0:01:03]} Rc8 {[%emt 0:03:08]} 15. Rac1 {[%emt 0:02:31]} O-O {[%emt 0:01:22]} 16. Nd4 {[%emt 0:08:06]} b5 {[%emt 0:04:58]} 17. Nb1 {[%emt 0:13:15]} Nb6 {[%emt 0:02:18]} 18. Nd2 {[%emt 0:01:44]} Nfd5 {[%emt 0:09:55]} 19. Rxc8 {[%emt 0:03:46]} Rxc8 {[%emt 0:00:28]} 20. Rc1 {[%emt 0:00:53]} Rxc1+ {[%emt 0:05:53]} 21. Bxc1 {[%emt 0:00:06]} Nc3 {[%emt 0:00:22]} 22. Bd3 {[%emt 0:05:18]} e5 {[%emt 0:07:05]} 23. Nf5 {[%emt 0:04:12]} Bf8 {[%emt 0:00:07]} 24. Bb2 {[%emt 0:02:47]} Nba4 {[%emt 0:00:27]} 25. Ba1 {[%emt 0:00:52]} g6 {[%emt 0:01:02]} 26. Ng3 {[%emt 0:01:10]} f5 {[%emt 0:07:15]} 27. Kf1 {[%emt 0:03:15]} Bg7 {[%emt 0:02:29]} 28. Bc2 {[%emt 0:01:31]} Kf7 {[%emt 0:03:36]} 29. Bb3+ {[%emt 0:01:24]} Ke7 {[%emt 0:00:56]} 30. f3 {[%emt 0:06:39]} Bf6 {[%emt 0:03:59]} 31. Ne2 {[%emt 0:01:46]} Nd5 {[%emt 0:02:14]} 32. Kf2 {[%emt 0:00:43]} Ndb6 {[%emt 0:03:13]} 33. Nc3 {[%emt 0:01:21]} Nxc3 {[%emt 0:01:53]} 34. Bxc3 {[%emt 0:00:02]} Bd5 {[%emt 0:00:42]} 35. Bc2 {[%emt 0:02:11]} Be6 {[%emt 0:01:25]} 36. e4 {[%emt 0:01:31]} Bg5 {[%emt 0:01:14]} 37. Ke2 {[%emt 0:01:36]} Kd6 {[%emt 0:02:46]} 38. Bd3 {[%emt 0:02:07]} Bxd2 {[%emt 0:02:05]} 39. Bxd2 {[%emt 0:01:51]} Bc4 {[%emt 0:00:58]} 40. Be3 {[%emt 0:00:00]} Bxd3+ {[%emt 0:00:00]} 41. Kxd3 {[%emt 0:01:05]} Nc4 {[%emt 0:00:56]} 42. Bc1 {[%emt 0:03:05]} Ke6 {[%emt 0:02:50]} 43. a4 {[%emt 0:02:57]} Kf6 {[%emt 0:02:25]} 44. axb5 {[%emt 0:00:29]} axb5 {[%emt 0:00:15]} 45. f4 {[%emt 0:06:49]} exf4 {[%emt 0:09:57]} 46. Bxf4 {[%emt 0:00:30]} g5 {[%emt 0:00:16]} 47. Bc1 {[%emt 0:02:26]} f4 {[%emt 0:00:59]} 48. Kd4 {[%emt 0:01:26]} Ke6 {[%emt 0:02:08]} 49. h4 {[%emt 0:03:19]} h6 {[%emt 0:00:24]} 50. hxg5 {[%emt 0:02:08]} hxg5 {[%emt 0:00:07]} 51. Kc5 {[%emt 0:03:31]} Nd6 {[%emt 0:03:29]} 52. Kd4 {[%emt 0:01:34]} Nc4 {[%emt 0:03:30]} 53. Kc5 {[%emt 0:00:14]} Nd6 {[%emt 0:00:31]} 54. Kd4 {[%emt 0:00:09]} Nc4 {[%emt 0:01:09]} 1/2-1/2

[Event "AUT Bundesliga 2022-23"]
[Site "Jenbach"]
[Date "2022.11.03"]
[Round "1.24"]
[White "Buhmann, Rainer"]
[Black "Kranz, Armin"]
[Result "1-0"]
[ECO "E14"]
[WhiteElo "2561"]
[BlackElo "2135"]
[Annotator "ChessBase"]
[PlyCount "65"]
[EventDate "2022.11.03"]
[EventType "team-tourn"]
[EventCountry "AUT"]
[SourceTitle "playchess.com"]
[Source "ChessBase"]
[SourceQuality "1"]
[TimeControl "40/5400+30:1800+30"]

1. d4 {[%emt 0:00:05]} Nf6 {[%emt 0:00:07]} 2. Nf3 {[%emt 0:00:05]} e6 {[%emt 0:00:18]} 3. c4 {[%emt 0:00:08]} b6 {[%emt 0:00:14]} 4. e3 {[%emt 0:00:13]} Bb7 {[%emt 0:00:53]} 5. Bd3 {[%emt 0:00:09]} Bb4+ {[%emt 0:00:57]} 6. Nbd2 {[%emt 0:00:14]} O-O {[%emt 0:01:50]} 7. O-O {[%emt 0:00:27]} d5 {[%emt 0:01:20]} 8. a3 {[%emt 0:00:39]} Bd6 {[%emt 0:11:06]} 9. b4 {[%emt 0:02:05]} c5 {[%emt 0:02:55]} 10. cxd5 {[%emt 0:03:37]} exd5 {[%emt 0:02:26]} 11. bxc5 {[%emt 0:00:48]} bxc5 {[%emt 0:00:22]} 12. dxc5 {[%emt 0:00:55]} Bxc5 {[%emt 0:00:12]} 13. Bb2 {[%emt 0:02:13]} Nbd7 {[%emt 0:04:34]} 14. Nb3 {[%emt 0:06:24]} Bd6 {[%emt 0:03:46]} 15. a4 {[%emt 0:06:44]} Re8 {[%emt 0:07:22]} 16. Nbd4 {[%emt 0:13:55]} Nc5 {[%emt 0:04:35]} 17. Bb5 {[%emt 0:06:04]} Re4 {[%emt 0:03:48]} 18. Nf5 {[%emt 0:05:46]} Bf8 {[%emt 0:05:16]} 19. Ng5 {[%emt 0:12:58]} Rb4 {[%emt 0:07:57]} 20. Bc3 {[%emt 0:01:13]} Ne6 {[%emt 0:04:57]} 21. Nxe6 {[%emt 0:03:41]} fxe6 {[%emt 0:00:18]} 22. Bxb4 {[%emt 0:04:18]} Bxb4 {[%emt 0:00:24]} 23. Nd4 {[%emt 0:00:13]} Qd6 {[%emt 0:02:21]} 24. Rc1 {[%emt 0:01:55]} Ba5 {[%emt 0:05:29]} 25. Bc6 {[%emt 0:02:28]} Rb8 {[%emt 0:11:09]} 26. Bxb7 {[%emt 0:01:52]} Rxb7 {[%emt 0:00:25]} 27. Rc8+ {[%emt 0:03:11]} Kf7 {[%emt 0:01:18]} 28. Rc6 {[%emt 0:01:03]} Qd7 {[%emt 0:01:58]} 29. Qc2 {[%emt 0:01:29]} e5 {[%emt 0:02:31]} 30. Nf3 {[%emt 0:07:17]} Bc7 {[%emt 0:03:56]} 31. Ng5+ {[%emt 0:01:13]} Kg8 {[%emt 0:00:21]} 32. Rc1 {[%emt 0:00:37]} Bd6 {[%emt 0:01:35]} 33. Rxd6 {[%emt 0:01:07]} 1-0

[Event "AUT Bundesliga 2022-23"]
[Site "Jenbach"]
[Date "2022.11.03"]
[Round "1.25"]
[White "Ragger, Markus"]
[Black "Markus, Robert"]
[Result "1/2-1/2"]
[ECO "C42"]
[WhiteElo "2632"]
[BlackElo "2615"]
[Annotator "ChessBase"]
[PlyCount "36"]
[EventDate "2022.11.03"]
[EventType "team-tourn"]
[EventCountry "AUT"]
[SourceTitle "playchess.com"]
[Source "ChessBase"]
[SourceQuality "1"]
[TimeControl "40/5400+30:1800+30"]

1. e4 {[%emt 0:00:01]} e5 {[%emt 0:00:08]} 2. Nf3 {[%emt 0:00:03]} Nf6 {[%emt 0:00:06]} 3. Nxe5 {[%emt 0:00:06]} d6 {[%emt 0:00:03]} 4. Nf3 {[%emt 0:00:06]} Nxe4 {[%emt 0:00:05]} 5. d4 {[%emt 0:00:04]} d5 {[%emt 0:00:22]} 6. Bd3 {[%emt 0:00:03]} Nd6 {[%emt 0:00:07]} 7. O-O {[%emt 0:01:13]} Be7 {[%emt 0:00:05]} 8. c3 {[%emt 0:04:40]} O-O {[%emt 0:00:58]} 9. Qc2 {[%emt 0:01:46]} g6 {[%emt 0:01:18]} 10. Bf4 {[%emt 0:02:41]} Nd7 {[%emt 0:05:21]} 11. Nbd2 {[%emt 0:10:51]} c6 {[%emt 0:05:00]} 12. Rfe1 {[%emt 0:06:33]} Re8 {[%emt 0:01:14]} 13. Nf1 {[%emt 0:06:05]} Nf8 {[%emt 0:02:49]} 14. Ng3 {[%emt 0:08:59]} Ne6 {[%emt 0:11:18]} 15. Bd2 {[%emt 0:03:37]} Ng7 {[%emt 0:03:50]} 16. Bf4 {[%emt 0:00:28]} Ne6 {[%emt 0:00:15]} 17. Bd2 {[%emt 0:01:39]} Ng7 {[%emt 0:00:33]} 18. Bf4 {[%emt 0:00:29]} Ne6 {[%emt 0:00:25]} 1/2-1/2

[Event "AUT Bundesliga 2022-23"]
[Site "Jenbach"]
[Date "2022.11.03"]
[Round "1.26"]
[White "Horvath, Dominik"]
[Black "Naumann, Alexander"]
[Result "1-0"]
[ECO "D41"]
[WhiteElo "2505"]
[BlackElo "2513"]
[Annotator "ChessBase"]
[PlyCount "63"]
[EventDate "2022.11.03"]
[EventType "team-tourn"]
[EventCountry "AUT"]
[SourceTitle "playchess.com"]
[Source "ChessBase"]
[SourceQuality "1"]
[TimeControl "40/5400+30:1800+30"]

1. Nf3 {[%emt 0:00:09]} d5 {[%emt 0:00:16]} 2. d4 {[%emt 0:00:06]} Nf6 {[%emt 0:00:06]} 3. c4 {[%emt 0:00:03]} e6 {[%emt 0:00:07]} 4. Nc3 {[%emt 0:01:55]} c5 {[%emt 0:00:16]} 5. cxd5 {[%emt 0:00:39]} Nxd5 {[%emt 0:00:45]} 6. e4 {[%emt 0:01:23]} Nxc3 {[%emt 0:00:09]} 7. bxc3 {[%emt 0:00:04]} cxd4 {[%emt 0:00:15]} 8. cxd4 {[%emt 0:00:04]} Bb4+ {[%emt 0:00:08]} 9. Bd2 {[%emt 0:00:03]} Bxd2+ {[%emt 0:00:07]} 10. Qxd2 {[%emt 0:00:03]} O-O {[%emt 0:00:32]} 11. Bc4 {[%emt 0:00:09]} Nd7 {[%emt 0:01:54]} 12. O-O {[%emt 0:00:05]} b6 {[%emt 0:00:17]} 13. Rad1 {[%emt 0:00:07]} Bb7 {[%emt 0:00:10]} 14. Rfe1 {[%emt 0:00:03]} Rc8 {[%emt 0:00:29]} 15. Bb3 {[%emt 0:00:04]} h6 {[%emt 0:10:28]} 16. h3 {[%emt 0:06:38]} Qf6 {[%emt 0:12:27]} 17. Re3 {[%emt 0:10:59]} Rfd8 {[%emt 0:01:48]} 18. Qe2 {[%emt 0:01:02]} Qe7 {[%emt 0:27:06]} 19. d5 {[%emt 0:08:23]} Nc5 {[%emt 0:02:16]} 20. Nd4 {[%emt 0:00:16]} exd5 {[%emt 0:26:51]} 21. Nf5 {[%emt 0:08:04]} Qf6 {[%emt 0:00:17]} 22. Rg3 {[%emt 0:00:04]} Nxe4 {[%emt 0:04:05]} 23. Rxg7+ {[%emt 0:04:16]} Kh8 {[%emt 0:02:03]} 24. Qh5 {[%emt 0:00:07]} Nd6 {[%emt 0:01:13]} 25. Nxd6 {[%emt 0:02:14]} Kxg7 {[%emt 0:00:53]} 26. Nxb7 {[%emt 0:01:26]} Re8 {[%emt 0:02:42]} 27. Qg4+ {[%emt 0:11:28]} Kh8 {[%emt 0:01:36]} 28. Qd7 {[%emt 0:00:42]} Qe6 {[%emt 0:04:14]} 29. Qxd5 {[%emt 0:03:57]} Qxd5 {[%emt 0:00:30]} 30. Rxd5 {[%emt 0:00:04]} Rc1+ {[%emt 0:00:49]} 31. Kh2 {[%emt 0:00:03]} Re2 {[%emt 0:00:21]} 32. Rf5 {[%emt 0:00:11]} 1-0

[Event "AUT Bundesliga 2022-23"]
[Site "Jenbach"]
[Date "2022.11.03"]
[Round "1.27"]
[White "Roseneck, Jonas"]
[Black "Korpa, Bence"]
[Result "0-1"]
[ECO "E73"]
[WhiteElo "2414"]
[BlackElo "2496"]
[Annotator "ChessBase"]
[PlyCount "98"]
[EventDate "2022.11.03"]
[EventType "team-tourn"]
[EventCountry "AUT"]
[SourceTitle "playchess.com"]
[Source "ChessBase"]
[SourceQuality "1"]
[TimeControl "40/5400+30:1800+30"]

1. d4 {[%emt 0:00:04]} Nf6 {[%emt 0:01:54]} 2. c4 {[%emt 0:00:01]} g6 {[%emt 0:00:21]} 3. Nc3 {[%emt 0:00:32]} Bg7 {[%emt 0:00:12]} 4. e4 {[%emt 0:00:03]} d6 {[%emt 0:00:13]} 5. Be2 {[%emt 0:00:24]} O-O {[%emt 0:00:20]} 6. Bg5 {[%emt 0:00:03]} c5 {[%emt 0:06:06]} 7. d5 {[%emt 0:00:06]} b5 {[%emt 0:00:45]} 8. cxb5 {[%emt 0:00:11]} a6 {[%emt 0:00:11]} 9. a4 {[%emt 0:01:19]} Qa5 {[%emt 0:05:15]} 10. Bd2 {[%emt 0:03:05]} axb5 {[%emt 0:00:36]} 11. Bxb5 {[%emt 0:05:58]} Ba6 {[%emt 0:05:47]} 12. Nge2 {[%emt 0:03:13]} Bxb5 {[%emt 0:04:36]} 13. Nxb5 {[%emt 0:00:33]} Qb6 {[%emt 0:00:25]} 14. Nec3 {[%emt 0:09:28]} Na6 {[%emt 0:05:15]} 15. O-O {[%emt 0:04:32]} Nb4 {[%emt 0:01:48]} 16. Be3 {[%emt 0:15:53]} Nd7 {[%emt 0:02:40]} 17. Qe2 {[%emt 0:09:02]} Qb7 {[%emt 0:02:52]} 18. a5 {[%emt 0:11:20]} Rfb8 {[%emt 0:04:44]} 19. h3 {[%emt 0:06:54]} Qa6 {[%emt 0:07:05]} 20. Rfe1 {[%emt 0:05:25]} Rb7 {[%emt 0:02:17]} 21. Ra4 {[%emt 0:01:52]} Rab8 {[%emt 0:01:01]} 22. Na3 {[%emt 0:00:23]} Qxe2 {[%emt 0:04:14]} 23. Rxe2 {[%emt 0:00:44]} Na6 {[%emt 0:00:25]} 24. Nc4 {[%emt 0:13:51]} Rb4 {[%emt 0:02:26]} 25. Rxb4 {[%emt 0:00:01]} Rxb4 {[%emt 0:00:16]} 26. Na3 {[%emt 0:01:07]} Ne5 {[%emt 0:21:04]} 27. Rd2 {[%emt 0:03:10]} f5 {[%emt 0:00:18]} 28. exf5 {[%emt 0:02:18]} gxf5 {[%emt 0:00:06]} 29. Bg5 {[%emt 0:01:47]} Kf7 {[%emt 0:00:39]} 30. Ne2 {[%emt 0:01:37]} Ra4 {[%emt 0:04:00]} 31. Nc2 {[%emt 0:00:33]} Ng6 {[%emt 0:02:34]} 32. Rd3 {[%emt 0:00:29]} Bxb2 {[%emt 0:02:34]} 33. Rf3 {[%emt 0:00:31]} Bf6 {[%emt 0:00:14]} 34. Rxf5 {[%emt 0:00:29]} Ra2 {[%emt 0:00:16]} 35. Bxf6 {[%emt 0:00:29]} exf6 {[%emt 0:00:11]} 36. Nc3 {[%emt 0:00:32]} Rxc2 {[%emt 0:00:10]} 37. Ne4 {[%emt 0:00:00]} Re2 {[%emt 0:04:43]} 38. Rxf6+ {[%emt 0:00:43]} Kg7 {[%emt 0:00:06]} 39. Rxd6 {[%emt 0:00:46]} Rxe4 {[%emt 0:00:14]} 40. Rxa6 {[%emt 0:00:00]} Ra4 {[%emt 0:00:00]} 41. Ra7+ {[%emt 0:06:57]} Kf6 {[%emt 0:03:00]} 42. d6 {[%emt 0:04:25]} Ne5 {[%emt 0:08:23]} 43. Rxh7 {[%emt 0:13:14]} Ke6 {[%emt 0:04:00]} 44. f4 {[%emt 0:02:53]} Rxf4 {[%emt 0:01:09]} 45. Rh6+ {[%emt 0:01:50]} Kd5 {[%emt 0:00:20]} 46. a6 {[%emt 0:02:25]} Rf7 {[%emt 0:00:54]} 47. h4 {[%emt 0:01:31]} c4 {[%emt 0:00:30]} 48. h5 {[%emt 0:00:43]} c3 {[%emt 0:00:20]} 49. Rh8 {[%emt 0:01:01]} c2 {[%emt 0:00:11]} 0-1

[Event "AUT Bundesliga 2022-23"]
[Site "Jenbach"]
[Date "2022.11.03"]
[Round "1.28"]
[White "Nagy, Gabor"]
[Black "Handler, Lukas"]
[Result "1/2-1/2"]
[ECO "A11"]
[WhiteElo "2488"]
[BlackElo "2442"]
[Annotator "ChessBase"]
[PlyCount "141"]
[EventDate "2022.11.03"]
[EventType "team-tourn"]
[EventCountry "AUT"]
[SourceTitle "playchess.com"]
[Source "ChessBase"]
[SourceQuality "1"]
[TimeControl "40/5400+30:1800+30"]

1. c4 {[%emt 0:00:09]} c6 {[%emt 0:00:08]} 2. Nf3 {[%emt 0:01:31]} d5 {[%emt 0:00:14]} 3. e3 {[%emt 0:00:54]} Nf6 {[%emt 0:00:25]} 4. d4 {[%emt 0:01:14]} e6 {[%emt 0:02:03]} 5. Bd3 {[%emt 0:00:53]} dxc4 {[%emt 0:04:29]} 6. Bxc4 {[%emt 0:00:20]} Nbd7 {[%emt 0:03:15]} 7. O-O {[%emt 0:03:50]} Bd6 {[%emt 0:04:58]} 8. a4 {[%emt 0:05:26]} O-O {[%emt 0:01:47]} 9. Nc3 {[%emt 0:00:48]} e5 {[%emt 0:08:27]} 10. a5 {[%emt 0:02:54]} h6 {[%emt 0:10:24]} 11. h3 {[%emt 0:01:54]} Qe7 {[%emt 0:07:39]} 12. Nh4 {[%emt 0:03:13]} Rd8 {[%emt 0:06:53]} 13. Nf5 {[%emt 0:01:44]} Qf8 {[%emt 0:00:13]} 14. Qf3 {[%emt 0:05:55]} Bb4 {[%emt 0:16:53]} 15. Qg3 {[%emt 0:04:56]} Kh7 {[%emt 0:05:09]} 16. dxe5 {[%emt 0:09:57]} Nh5 {[%emt 0:01:05]} 17. Qh2 {[%emt 0:01:33]} g6 {[%emt 0:05:10]} 18. Nd4 {[%emt 0:01:42]} Qc5 {[%emt 0:02:25]} 19. Bxf7 {[%emt 0:02:52]} Nxe5 {[%emt 0:00:54]} 20. Be6 {[%emt 0:01:38]} Nd3 {[%emt 0:05:07]} 21. Na2 {[%emt 0:06:49]} Bxa5 {[%emt 0:06:32]} 22. Bxc8 {[%emt 0:02:58]} Rdxc8 {[%emt 0:02:00]} 23. b4 {[%emt 0:00:31]} Bxb4 {[%emt 0:00:39]} 24. Nxb4 {[%emt 0:00:48]} Qxb4 {[%emt 0:01:46]} 25. Ba3 {[%emt 0:00:31]} Qc4 {[%emt 0:00:08]} 26. Qd6 {[%emt 0:02:04]} Ng7 {[%emt 0:00:30]} 27. Rfd1 {[%emt 0:01:07]} c5 {[%emt 0:01:28]} 28. Nf3 {[%emt 0:01:08]} Rd8 {[%emt 0:01:05]} 29. Qe7 {[%emt 0:00:18]} b6 {[%emt 0:01:37]} 30. Bb2 {[%emt 0:01:25]} Rg8 {[%emt 0:01:23]} 31. Bf6 {[%emt 0:03:39]} a5 {[%emt 0:00:38]} 32. Ra3 {[%emt 0:00:48]} Rae8 {[%emt 0:00:27]} 33. Qc7 {[%emt 0:01:00]} Qe6 {[%emt 0:00:28]} 34. Raxd3 {[%emt 0:01:16]} Qxf6 {[%emt 0:00:36]} 35. Rd6 {[%emt 0:00:27]} Re6 {[%emt 0:00:08]} 36. Qxb6 {[%emt 0:00:49]} a4 {[%emt 0:00:49]} 37. Qxc5 {[%emt 0:01:10]} Qe7 {[%emt 0:00:36]} 38. Qb6 {[%emt 0:01:18]} a3 {[%emt 0:00:26]} 39. Rxe6 {[%emt 0:00:14]} Qxe6 {[%emt 0:00:10]} 40. Qa7 {[%emt 0:00:00]} Qb3 {[%emt 0:00:00]} 41. Ra1 {[%emt 0:00:45]} Rc8 {[%emt 0:03:17]} 42. Rxa3 {[%emt 0:08:18]} Qd1+ {[%emt 0:07:06]} 43. Kh2 {[%emt 0:00:10]} Qd6+ {[%emt 0:02:50]} 44. g3 {[%emt 0:00:15]} Qd5 {[%emt 0:01:14]} 45. e4 {[%emt 0:02:12]} Qxe4 {[%emt 0:00:07]} 46. Re3 {[%emt 0:00:06]} Qa8 {[%emt 0:01:33]} 47. Qxa8 {[%emt 0:04:14]} Rxa8 {[%emt 0:00:06]} 48. Re7 {[%emt 0:00:05]} Re8 {[%emt 0:08:10]} 49. Ra7 {[%emt 0:00:33]} Kg8 {[%emt 0:00:39]} 50. g4 {[%emt 0:01:19]} Re6 {[%emt 0:02:29]} 51. Kg3 {[%emt 0:00:22]} Ne8 {[%emt 0:00:37]} 52. Nd4 {[%emt 0:01:14]} Rd6 {[%emt 0:00:36]} 53. Ra4 {[%emt 0:00:33]} Nf6 {[%emt 0:00:46]} 54. f4 {[%emt 0:00:41]} Ne4+ {[%emt 0:01:32]} 55. Kf3 {[%emt 0:02:26]} Nc5 {[%emt 0:00:41]} 56. Ra8+ {[%emt 0:00:29]} Kg7 {[%emt 0:00:58]} 57. Ke3 {[%emt 0:00:26]} Ne6 {[%emt 0:00:42]} 58. Ra7+ {[%emt 0:01:12]} Kg8 {[%emt 0:00:55]} 59. Nf3 {[%emt 0:00:33]} Rb6 {[%emt 0:00:32]} 60. Ra3 {[%emt 0:01:07]} Rb4 {[%emt 0:02:14]} 61. f5 {[%emt 0:00:39]} gxf5 {[%emt 0:00:22]} 62. gxf5 {[%emt 0:00:07]} Ng5 {[%emt 0:00:50]} 63. Ra8+ {[%emt 0:00:19]} Kg7 {[%emt 0:00:40]} 64. Ra7+ {[%emt 0:00:35]} Kg8 {[%emt 0:01:51]} 65. Nd4 {[%emt 0:00:27]} Nxh3 {[%emt 0:00:30]} 66. Ne6 {[%emt 0:02:23]} Ng5 {[%emt 0:00:37]} 67. Nxg5 {[%emt 0:00:30]} hxg5 {[%emt 0:00:07]} 68. f6 {[%emt 0:00:09]} Rf4 {[%emt 0:00:12]} 69. Rg7+ {[%emt 0:00:07]} Kf8 {[%emt 0:00:05]} 70. Rxg5 {[%emt 0:00:06]} Rxf6 {[%emt 0:00:07]} 71. Ke4 1/2-1/2